bitfinex-derivatives/quotes_SOLF0:USTF0_20260210
["timestamp","ask_amount","ask_price","bid_price","bid_amount"]
[1770728040799,1.40067689,83.969,83.934,7.16232851]
[1770728041096,3.7208199,83.96,83.934,7.16232851]
[1770728041394,1.40067689,83.969,83.934,7.16232851]
[1770728045304,3.63467917,83.97,83.934,7.16232851]
[1770728048119,3.63467917,83.96,83.934,7.16232851]
[1770728048319,0.96153743,83.969,83.934,7.16232851]
[1770728049415,3.63467917,83.97,83.934,7.16232851]
[1770728049614,0.96644997,83.979,83.934,7.16232851]
[1770728049819,3.63467917,83.97,83.934,7.16232851]
[1770728052419,132.56,83.98,83.934,7.16232851]
[1770728052624,132.56,83.98,83.856,36.93392851]
[1770728052625,132.56,83.98,83.938,7.16232851]
[1770728052824,3.63467917,83.99,83.938,7.16232851]
[1770728053521,3.63467917,83.99,83.93,3.63467917]
[1770728053522,3.63467917,83.99,83.94,7.16232851]
[1770728054219,3.63467917,83.99,83.946,7.16232851]
[1770728054613,10.7247,83.996,83.94,3.63467917]
[1770728054614,136.5,83.998,83.956,7.16232851]
[1770728055214,10.7244,83.998,83.956,7.16232851]
[1770728055621,3.63467917,84.0,83.956,7.16232851]
[1770728057018,3.63467917,84.0,83.959,7.31631973]
[1770728058321,136.68,84.007,83.959,7.31631973]
[1770728058528,3.63467917,84.02,83.975,7.31639866]
[1770728059128,4.13165788,84.02,83.975,7.31639866]
[1770728059926,0.49002156,84.019,83.975,7.31639866]
[1770728060226,3.63467917,84.01,83.975,7.31639866]
[1770728061127,3.63467917,84.01,83.977,7.33759054]
[1770728061328,0.49002156,84.019,83.977,7.33759054]
[1770728061529,3.63467917,84.02,83.977,7.33759054]
[1770728062623,3.63467917,84.02,83.978,7.33779112]
[1770728064626,0.46839199,84.009,83.969,11.0693098]
[1770728064834,3.63467917,84.0,83.966,7.33582421]
[1770728065028,0.34083577,83.999,83.954,11.0693098]
[1770728065229,0.34083577,83.999,83.955,7.39960232]
[1770728065230,3.63155792,83.99,83.955,7.39960232]
[1770728065731,0.34083577,83.999,83.966,7.39960232]
[1770728066433,3.63155792,84.0,83.968,7.39964041]
[1770728067925,10.7243,83.999,83.968,7.39964041]
[1770728068129,3.63155792,83.99,83.968,7.39964041]
[1770728068836,3.63155792,84.0,83.968,7.39964041]
[1770728069237,14.45908048,84.0,83.968,7.39964041]
[1770728069637,3.63155792,83.99,83.968,7.39964041]
[1770728071040,3.73498048,84.0,83.968,7.39964041]
[1770728072243,3.63155792,84.0,83.968,7.39964041]
[1770728073346,3.63155792,84.0,83.973,10.7275]
[1770728074742,3.63155792,84.0,83.977,10.727]
[1770728075343,3.63155792,84.0,83.977,18.20318838]
[1770728076141,3.63155792,84.02,83.98,7.47619591]
[1770728077046,3.63155792,84.03,83.993,7.35252532]
[1770728083350,3.63155792,84.03,83.994,7.30455185]
[1770728085149,0.12643184,84.033,83.994,7.30455185]
[1770728085350,3.63155792,84.03,83.994,7.30455185]
[1770728091448,14.35185792,84.03,83.994,7.30455185]
[1770728093452,0.24884565,84.009,83.973,7.37488514]
[1770728093653,3.63155792,84.0,83.973,7.37488514]
[1770728093956,3.63155792,84.0,83.957,7.37488514]
[1770728094358,0.24453021,83.989,83.957,7.37488514]
[1770728095056,0.24453021,83.989,83.93,3.63155792]
[1770728095057,3.63155792,83.97,83.935,11.0693098]
[1770728095254,3.63155792,83.96,83.935,7.3453481]
[1770728095460,3.63155792,83.96,83.924,7.3453481]
[1770728096254,3.63574933,83.96,83.924,7.3453481]
[1770728098645,3.63574933,83.97,83.926,7.35031184]
[1770728099861,10.7283,83.967,83.926,7.35031184]
[1770728100061,3.9942122,83.96,83.926,7.35031184]
[1770728100657,3.63574933,83.96,83.926,7.35031184]
[1770728101660,3.63574933,83.97,83.926,7.35031184]
[1770728101861,3.63574933,83.97,83.927,7.23727212]
[1770728103253,10.726,83.986,83.929,7.31999764]
[1770728103453,3.63574933,83.98,83.931,7.31999764]
[1770728104363,3.63574933,83.98,83.935,7.32004257]
[1770728104562,3.63574933,83.98,83.94,7.32004257]
[1770728105658,3.63574933,83.96,83.929,18.42609766]
[1770728105863,3.63574933,83.96,83.929,7.35678786]
[1770728107163,3.869398,83.97,83.929,7.35678786]
[1770728108366,0.08726961,83.969,83.929,7.35678786]
[1770728108665,3.63574933,83.96,83.929,7.35678786]
[1770728110155,0.08726961,83.969,83.929,7.35678786]
[1770728112369,0.08726961,83.969,83.903,466.93947019]
[1770728112370,3.63574933,83.98,83.931,7.35967013]
[1770728113863,4.28596293,83.98,83.931,7.35967013]
[1770728114064,0.65005081,83.979,83.931,7.35967013]
[1770728114264,3.63574933,83.97,83.931,7.35967013]
[1770728114969,0.64674769,83.969,83.931,7.35967013]
[1770728115970,10.7284,83.966,83.931,7.35967013]
[1770728116272,0.64674769,83.969,83.931,7.35967013]
[1770728116673,10.7292,83.961,83.931,7.35967013]
[1770728118578,3.63574933,83.98,83.931,7.35967013]
[1770728119676,10.7292,83.961,83.931,7.35967013]
[1770728119881,3.63574933,83.98,83.931,7.35967013]
[1770728120285,3.63574933,83.99,83.941,7.29117999]
[1770728120586,10.728,83.97,83.941,7.29117999]
[1770728121486,10.7287,83.965,83.941,7.29117999]
[1770728122385,10.7277,83.972,83.941,7.29117999]
[1770728123687,10.7263,83.983,83.941,7.29117999]
[1770728125787,10.7245,83.997,83.951,6.76875744]
[1770728126678,7.07956407,84.002,83.961,6.76875744]
[1770728126883,10.7232,84.008,83.961,6.76875744]
[1770728127580,7.07956407,84.013,83.971,6.76875744]
[1770728127779,3.63289483,84.03,83.971,6.76875744]
[1770728127780,7.07956407,84.029,83.971,6.76875744]
[1770728128190,3.63289483,84.03,83.971,6.76875744]
[1770728128191,7.07956407,84.019,83.971,6.76875744]
[1770728128783,7.07956407,83.999,83.947,17.83806724]
[1770728129091,7.07956407,83.989,83.947,6.76875744]
[1770728135190,7.07956407,83.989,83.951,6.76875744]
[1770728136894,7.07956407,83.989,83.956,10.7297]
[1770728137096,10.7124589,84.0,83.957,6.76875744]
[1770728137288,7.07956407,84.013,83.965,6.76875744]
[1770728138401,7.07956407,84.013,83.967,6.76875744]
[1770728138586,7.07956407,84.013,83.96,3.63289483]
[1770728138587,7.07956407,84.013,83.969,17.49665744]
[1770728138984,7.07956407,84.013,83.97,6.76875744]
[1770728140594,7.07956407,84.009,83.97,6.76875744]
[1770728140795,7.07956407,83.999,83.958,6.76875744]
[1770728141698,7.07956407,83.999,83.964,10.7286]
[1770728142296,7.07956407,83.999,83.958,6.76875744]
[1770728146605,7.07956407,83.996,83.958,6.76875744]
[1770728147202,10.7234,84.006,83.961,6.76875744]
[1770728147397,10.7234,84.006,83.962,6.76875744]
[1770728147599,7.07956407,83.999,83.961,11.10070696]
[1770728147910,7.07956407,83.997,83.955,11.10070696]
[1770728148302,7.07956407,83.997,83.956,11.10070696]
[1770728148703,7.07956407,83.992,83.956,11.10070696]
[1770728148908,7.07956407,83.992,83.954,11.10070696]
[1770728149208,7.07956407,83.992,83.955,11.10070696]
[1770728149711,7.07956407,83.99,83.955,11.10070696]
[1770728150206,7.07956407,83.99,83.954,11.10070696]
[1770728151210,7.07956407,83.99,83.955,11.10070696]
[1770728154218,7.07956407,83.99,83.956,11.10070696]
[1770728154612,7.07956407,83.99,83.957,10.7296]
[1770728157007,7.27513761,83.979,83.944,11.10070696]
[1770728157204,7.27513761,83.979,83.934,7.22622973]
[1770728157409,7.27513761,83.979,83.934,18.32693669]
[1770728158014,7.27513761,83.979,83.934,7.22622973]
[1770728158818,7.27513761,83.979,83.937,10.732]
[1770728160321,3.63289483,83.96,83.93,10.733]
[1770728160522,7.27513761,83.969,83.93,10.733]
[1770728160822,7.27513761,83.969,83.936,10.7322]
[1770728163323,7.27513761,83.996,83.952,7.22622973]
[1770728163621,7.27513761,83.989,83.952,7.22622973]
[1770728163816,7.27513761,83.989,83.954,7.22622973]
[1770728164720,7.27513761,83.989,83.957,10.7295]
[1770728165617,7.27513761,83.989,83.955,7.22622973]
[1770728166622,21.63143254,84.0,83.955,7.22622973]
[1770728166922,7.27513761,84.0,83.955,7.22622973]
[1770728168622,7.27513761,83.999,83.955,7.22622973]
[1770728169318,3.63219493,83.99,83.955,11.10070696]
[1770728169522,7.27513761,83.979,83.939,11.10070696]
[1770728169724,7.27513761,83.979,83.942,11.10070696]
[1770728170130,7.27513761,83.979,83.944,11.10070696]
[1770728172527,7.27513761,83.979,83.944,18.32693669]
[1770728172728,7.27513761,83.979,83.945,7.22622973]
[1770728172924,3.63219493,84.0,83.949,7.22622973]
[1770728173222,134.76,84.015,83.965,7.22622973]
[1770728173223,7.27513761,84.003,83.965,7.22622973]
[1770728173416,7.27513761,84.003,83.965,18.32693669]
[1770728174730,10.7239,84.002,83.965,18.32693669]
[1770728177928,14.35629493,84.0,83.966,7.22622973]
[1770728178129,7.27513761,84.011,83.975,7.22622973]
[1770728178927,10.7231,84.009,83.975,7.22622973]
[1770728179131,7.27513761,84.011,83.975,7.22622973]
[1770728180829,10.7237,84.003,83.975,7.22622973]
[1770728181731,6.83420868,84.004,83.964,7.30022537]
[1770728182721,10.724,84.001,83.964,7.30022537]
[1770728189434,10.7231,84.008,83.966,7.30022537]
[1770728189633,6.83420868,84.016,83.966,7.30022537]
[1770728189828,6.83420868,84.016,83.969,7.30022537]
[1770728190031,6.83420868,84.016,83.946,22.14533235]
[1770728190032,10.7226,84.012,83.981,7.30022537]
[1770728190332,6.83420868,84.027,83.981,7.30022537]
[1770728190727,6.83420868,84.027,83.991,7.30022537]
[1770728190930,6.83420868,84.039,83.991,7.30022537]
[1770728191732,6.83420868,84.039,84.001,7.30022537]
[1770728192735,17.55350868,84.038,84.001,7.30022537]
[1770728195237,6.83420868,84.037,84.001,7.30022537]
[1770728195639,6.83420868,84.035,84.001,7.30022537]
[1770728196137,6.83420868,84.029,83.983,7.30022537]
[1770728198839,6.83420868,84.027,83.983,7.30022537]
[1770728199040,6.83420868,84.019,83.983,7.30022537]
[1770728199434,6.83420868,84.014,83.976,7.30022537]
[1770728201440,10.7211,84.024,83.981,7.30022537]
[1770728202839,10.7211,84.024,83.983,7.30022537]
[1770728204735,6.83420868,84.029,83.983,7.30022537]
[1770728204934,10.46556219,84.02,83.983,7.30022537]
[1770728205336,6.83420868,84.019,83.972,10.7276]
[1770728207540,6.83420868,84.019,83.972,18.02782537]
[1770728207942,6.83420868,84.017,83.972,18.02782537]
[1770728208944,6.83420868,84.017,83.973,7.30022537]
[1770728209145,6.83420868,84.017,83.975,10.7272]
[1770728210246,6.83420868,84.017,83.976,7.19123521]
[1770728210842,6.83420868,84.017,83.983,10.7262]
[1770728211149,6.83420868,84.017,83.984,7.19123521]
[1770728211945,6.83420868,84.017,83.976,10.7271]
[1770728211946,11.12488844,84.03,83.981,7.19123521]
[1770728212338,11.12488844,84.03,83.982,7.19123521]
[1770728212748,11.12488844,84.03,83.987,7.19123521]
[1770728212952,7.49353493,84.03,83.987,7.19123521]
[1770728214658,7.49353493,84.03,83.989,7.19123521]
[1770728217760,18.21393493,84.029,83.989,7.19123521]
[1770728218963,18.21393493,84.029,83.99,7.19123521]
[1770728219260,18.21393493,84.029,83.99,18.29194217]
[1770728219459,18.21393493,84.029,83.991,7.19123521]
[1770728223972,18.21393493,84.029,83.996,7.19123521]
[1770728224267,7.49353493,84.019,83.985,18.29194217]
[1770728225472,7.49353493,84.009,83.984,11.10070696]
[1770728225666,7.49353493,84.009,83.979,11.10070696]
[1770728228369,7.49353493,84.009,83.98,11.10070696]
[1770728229769,18.21513493,84.02,83.986,11.10070696]
[1770728230168,21.84648844,84.02,83.986,11.10070696]
[1770728230369,7.49353493,84.029,83.988,7.19123521]
[1770728230670,7.49353493,84.029,83.995,18.29194217]
[1770728230872,7.49353493,84.029,83.996,11.10070696]
[1770728231774,7.49353493,84.029,83.996,18.29194217]
[1770728232270,7.49353493,84.029,83.997,11.10070696]
[1770728232874,10.7207,84.027,83.997,11.10070696]
[1770728233679,10.7207,84.027,83.998,11.10070696]
[1770728233872,10.7207,84.027,83.999,7.19123521]
[1770728234271,10.7207,84.027,83.999,18.29194217]
[1770728235667,10.7207,84.027,83.999,7.19123521]
[1770728237783,18.21423493,84.027,83.998,11.10070696]
[1770728238084,7.49353493,84.026,83.993,11.10070696]
[1770728239474,3.63135351,84.02,83.993,11.10070696]
[1770728239680,7.49353493,84.019,83.989,11.10070696]
[1770728240086,7.49353493,84.019,83.988,11.10070696]
[1770728240281,7.49353493,84.019,83.989,11.10070696]
[1770728241483,7.49353493,84.019,83.99,11.10070696]
[1770728242685,10.7205,84.029,83.995,7.29670283]
[1770728243684,7.29283375,84.028,83.995,7.29670283]
[1770728245387,7.29283375,84.028,83.999,11.10070696]
[1770728245680,7.29283375,84.028,83.997,11.10070696]
[1770728245886,7.29283375,84.028,83.995,7.29670283]
[1770728247285,7.29283375,84.017,83.994,11.10070696]
[1770728247593,7.29283375,84.017,83.979,11.10070696]
[1770728248287,7.29283375,84.017,83.978,11.10070696]
[1770728248690,10.7221,84.016,83.978,11.10070696]
[1770728248990,7.29283375,84.015,83.978,11.10070696]
[1770728249287,7.29283375,84.015,83.978,11.14148665]
[1770728254790,7.29283375,84.015,83.977,11.14148665]
[1770728255187,7.29283375,84.009,83.977,11.14148665]
[1770728255491,7.29283375,84.009,83.971,11.14148665]
[1770728256292,7.29283375,84.009,83.95,3.62904588]
[1770728256293,10.7248,83.995,83.972,7.29670283]
[1770728256794,10.7248,83.995,83.966,11.14148665]
[1770728257293,10.7248,83.995,83.969,11.14148665]
[1770728257992,10.7248,83.995,83.967,11.14148665]
[1770728258388,10.7248,83.995,83.961,7.29670283]
[1770728258389,10.7255,83.99,83.965,11.14148665]
[1770728258594,10.7255,83.99,83.968,11.14148665]
[1770728259494,10.7255,83.99,83.965,11.14148665]
[1770728260294,10.7255,83.99,83.964,11.14148665]
[1770728261092,10.7261,83.985,83.967,11.14148665]
[1770728261401,10.7261,83.985,83.963,11.14148665]
[1770728261796,7.29283375,83.984,83.963,8.665e-05]
[1770728261995,7.29283375,83.969,83.932,7.29670283]
[1770728265902,7.29283375,83.959,83.921,7.29670283]
[1770728266898,7.29283375,83.959,83.926,10.7335]
[1770728267096,7.29283375,83.959,83.927,7.29670283]
[1770728267897,3.62904588,83.98,83.931,7.29670283]
[1770728268201,14.7635148,84.026,83.896,21.4747]
[1770728268202,7.29283375,83.992,83.941,7.29670283]
[1770728268599,7.29283375,83.992,83.949,7.29670283]
[1770728269693,7.29283375,83.992,83.953,10.73]
[1770728270304,3.62904588,83.99,83.953,10.73]
[1770728271500,11.21794011,83.99,83.953,10.73]
[1770728272509,11.21794011,83.99,83.949,7.29670283]
[1770728273807,7.58889423,83.989,83.949,7.29670283]
[1770728275607,3.62904588,84.0,83.951,7.2813967]
[1770728275810,7.58889423,84.001,83.951,7.2813967]
[1770728276904,7.58889423,84.001,83.957,7.2813967]
[1770728277814,7.58889423,84.001,83.95,3.62904588]
[1770728277815,7.58889423,84.001,83.96,7.2813967]
[1770728278814,7.58889423,84.001,83.962,7.2813967]
[1770728279607,7.58889423,84.013,83.966,7.2813967]
[1770728280212,10.7226,84.012,83.966,7.2813967]
[1770728281209,10.723,84.009,83.966,7.2813967]
[1770728281511,18.31189423,84.009,83.966,7.2813967]
[1770728282206,10.7237,84.004,83.966,7.2813967]
[1770728282609,7.58889423,83.999,83.954,7.2813967]
[1770728282911,7.58889423,83.995,83.954,7.2813967]
[1770728284809,10.725,83.993,83.954,7.2813967]
[1770728285010,21.4409,84.029,83.922,132.7]
[1770728285011,7.58889423,84.006,83.961,7.2813967]
[1770728285712,7.58889423,84.006,83.96,3.63140066]
[1770728285713,10.7234,84.006,83.964,7.2813967]
[1770728286618,7.58889423,84.003,83.964,7.2813967]
[1770728286914,7.58889423,83.999,83.924,7.2813967]
[1770728287114,7.58889423,83.999,83.941,7.2813967]
[1770728287617,11.22029489,83.99,83.952,10.7302]
[1770728288006,7.58889423,83.99,83.953,7.2813967]
[1770728288719,10.7256,83.989,83.953,7.2813967]
[1770728289617,7.58889423,83.99,83.956,7.2813967]
[1770728291713,7.58889423,83.99,83.958,10.7294]
[1770728294721,11.22029489,83.99,83.958,10.7294]
[1770728295316,11.22029489,83.99,83.958,18.0107967]
[1770728295615,11.22029489,83.99,83.958,7.2813967]
[1770728295820,7.58889423,83.969,83.928,14.81613787]
[1770728296023,7.58889423,83.969,83.921,7.2813967]
[1770728296024,3.63140066,83.96,83.921,7.2813967]
[1770728296418,11.22029489,83.96,83.921,7.2813967]
[1770728296921,7.58889423,83.959,83.921,7.2813967]
[1770728297720,7.58889423,83.949,83.91,7.2813967]
[1770728300721,3.63140066,83.95,83.91,7.2813967]
[1770728303624,3.63140066,83.95,83.911,7.27259588]
[1770728303830,7.17192025,83.959,83.911,7.27259588]
[1770728304625,7.17192025,83.959,83.913,10.7351]
[1770728304932,7.17192025,83.959,83.914,7.27259588]
[1770728305224,7.17192025,83.959,83.917,7.27259588]
[1770728308731,7.17192025,83.959,83.92,7.27259588]
[1770728310130,95.08,83.994,83.932,7.27259588]
[1770728310131,7.17192025,83.969,83.932,7.27259588]
[1770728310530,7.17192025,83.959,83.91,3.63521649]
[1770728310725,7.17192025,83.959,83.907,7.27259588]
[1770728311830,7.17192025,83.949,83.907,7.27259588]
[1770728312731,7.17192025,83.949,83.923,10.7339]
[1770728314734,7.17192025,83.949,83.93,10.733]
[1770728314929,2.025e-05,83.949,83.93,10.733]
[1770728318132,2.025e-05,83.949,83.9,3.63521649]
[1770728318133,2.025e-05,83.949,83.923,10.7338]
[1770728318335,2.025e-05,83.949,83.917,7.27259588]
[1770728329943,3.63521649,83.97,83.917,7.27259588]
[1770728330143,3.63521649,83.97,83.91,3.63521649]
[1770728330144,7.6751592,83.969,83.921,7.63124397]
[1770728330846,11.31037569,83.96,83.921,7.63124397]
[1770728331041,7.6751592,83.959,83.921,7.63124397]
[1770728332839,10.73,83.954,83.921,7.63124397]
[1770728334552,10.7308,83.948,83.921,7.63124397]
[1770728337446,7.6751592,83.958,83.921,7.63124397]
[1770728339250,7.6751592,83.958,83.915,21.83848744]
[1770728340253,7.6751592,83.958,83.917,11.10358744]
[1770728340751,7.6751592,83.958,83.918,11.10358744]
[1770728340951,14.7635148,83.992,83.915,10.7349]
[1770728340952,7.6751592,83.949,83.915,18.73483141]
[1770728341456,7.6751592,83.949,83.916,7.63124397]
[1770728341659,7.6751592,83.959,83.921,7.63124397]
[1770728342262,7.6751592,83.959,83.921,18.73483141]
[1770728342451,7.6751592,83.959,83.921,29.46893141]
[1770728343661,7.6751592,83.959,83.921,18.73483141]
[1770728344158,7.6751592,83.959,83.921,7.63124397]
[1770728344362,7.6751592,83.959,83.921,18.73483141]
[1770728347563,7.6751592,83.959,83.922,7.63124397]
[1770728351268,7.6751592,83.959,83.922,18.73483141]
[1770728352768,3.63521649,83.95,83.917,11.10358744]
[1770728352967,7.6751592,83.949,83.917,11.10358744]
[1770728354768,18.4062592,83.946,83.917,11.10358744]
[1770728356975,10.7302,83.953,83.923,7.63124397]
[1770728359281,10.7302,83.953,83.924,7.63124397]
[1770728360276,10.7302,83.953,83.925,7.3127564]
[1770728361475,7.09630338,83.977,83.938,11.10358744]
[1770728361775,7.09630338,83.977,83.937,11.10358744]
[1770728361974,7.09630338,83.977,83.92,3.63521649]
[1770728361975,7.09630338,83.977,83.94,11.10358744]
[1770728362173,10.7291,83.961,83.939,11.10358744]
[1770728362376,10.7291,83.961,83.938,7.17429062]
[1770728363270,7.09630338,83.96,83.929,11.10358744]
[1770728363467,7.09630338,83.96,83.928,7.17429062]
[1770728364577,7.09630338,83.96,83.929,11.10358744]
[1770728364777,7.09630338,83.96,83.928,7.17429062]
[1770728365072,7.09630338,83.96,83.929,11.10358744]
[1770728366264,7.09630338,83.958,83.923,11.10358744]
[1770728367477,10.7298,83.956,83.923,11.10358744]
[1770728367873,7.09630338,83.955,83.923,11.10358744]
[1770728368078,7.09630338,83.955,83.921,11.10358744]
[1770728368379,7.09630338,83.955,83.923,11.10358744]
[1770728369075,7.09630338,83.951,83.923,11.10358744]
[1770728370975,17.82690338,83.95,83.923,11.10358744]
[1770728371178,7.09630338,83.949,83.923,11.10358744]
[1770728372978,7.09630338,83.949,83.923,8.744e-05]
[1770728373182,7.09630338,83.949,83.917,7.17429062]
[1770728373779,7.09630338,83.949,83.904,7.17429062]
[1770728373780,10.7323,83.937,83.904,7.17429062]
[1770728374084,7.09630338,83.939,83.904,7.17429062]
[1770728374587,10.7324,83.936,83.904,7.17429062]
[1770728374980,10.733,83.931,83.904,7.17429062]
[1770728376380,10.7321,83.938,83.904,7.17429062]
[1770728376581,7.09630338,83.939,83.904,7.17429062]
[1770728377080,10.7334,83.928,83.904,7.17429062]
[1770728379091,10.7325,83.935,83.904,7.17429062]
[1770728382587,7.09630338,83.949,83.904,7.17429062]
[1770728383700,7.09630338,83.949,83.905,10.7362]
[1770728383993,3.63602058,83.95,83.906,7.17429062]
[1770728384198,7.09630338,83.958,83.911,7.17429062]
[1770728385701,7.09630338,83.958,83.915,10.7349]
[1770728385904,7.09630338,83.958,83.916,7.17429062]
[1770728386706,7.09630338,83.958,83.918,7.17429062]
[1770728391105,6.92318999,83.956,83.918,7.17429062]
[1770728391297,6.92318999,83.956,83.905,7.27015904]
[1770728391499,6.92318999,83.949,83.905,7.27015904]
[1770728392100,95.1,83.976,83.899,7.27015904]
[1770728392101,6.92318999,83.939,83.899,7.27015904]
[1770728393804,10.7322,83.937,83.899,7.27015904]
[1770728394703,10.733,83.931,83.899,7.27015904]
[1770728399514,6.92318999,83.936,83.899,7.27015904]
[1770728400709,6.92318999,83.934,83.889,7.27015904]
[1770728400909,6.92318999,83.929,83.879,7.27015904]
[1770728401606,6.92318999,83.919,83.869,18.01095904]
[1770728401804,6.92318999,83.909,83.857,7.27015904]
[1770728402003,6.92318999,83.909,83.859,7.27015904]
[1770728402716,6.92318999,83.909,83.861,7.27015904]
[1770728404517,6.92318999,83.909,83.865,7.27015904]
[1770728405320,6.92318999,83.92,83.871,7.27015904]
[1770728407314,6.92318999,83.929,83.881,7.27015904]
[1770728410619,10.7335,83.927,83.881,7.27015904]
[1770728412525,17.65668999,83.927,83.881,7.27015904]
[1770728414227,6.92318999,83.926,83.881,7.27015904]
[1770728415927,6.92318999,83.919,83.838,12.21664419]
[1770728416128,3.63718243,83.86,83.822,38.11746963]
[1770728416625,95.12,83.893,83.822,38.11746963]
[1770728416829,95.12,83.893,83.831,38.11746963]
[1770728417029,3.63718243,83.89,83.831,38.11746963]
[1770728417423,95.12,83.893,83.831,38.11746963]
[1770728417619,3.63718243,83.88,83.831,38.11746963]
[1770728422326,3.63718243,83.87,83.831,38.11746963]
[1770728424025,3.63718243,83.87,83.81,3.63718243]
[1770728424026,3.63718243,83.86,83.811,38.32345293]
[1770728426429,8.53522935,83.889,83.811,38.32345293]
[1770728426635,29.51664669,83.945,83.781,125.54]
[1770728426636,3.63718243,83.89,83.831,38.288243]
[1770728430832,3.64169055,83.89,83.831,38.288243]
[1770728431639,10.7383,83.889,83.833,38.01532191]
[1770728431936,3.64169055,83.93,83.881,38.01532191]
[1770728432134,10.7334,83.928,83.881,38.01532191]
[1770728434437,3.64169055,83.94,83.891,32.46317843]
[1770728434438,10.7319,83.94,83.891,32.46317843]
[1770728435241,14.37359055,83.94,83.891,32.46317843]
[1770728435435,3.64169055,83.93,83.891,32.46317843]
[1770728435939,8.91421436,83.96,83.891,32.46317843]
[1770728436144,2.07377391,83.962,83.901,32.53617518]
[1770728436339,3.64169055,83.95,83.901,32.53617518]
[1770728437746,10.7308,83.948,83.901,32.53617518]
[1770728438335,3.64169055,83.94,83.901,32.53617518]
[1770728439048,3.64169055,83.93,83.88,36.14467602]
[1770728439248,2.07377391,83.962,83.867,32.47309179]
[1770728439249,3.64169055,83.92,83.867,32.47309179]
[1770728439443,3.64169055,83.92,83.871,32.47309179]
[1770728441148,3.64169055,83.93,83.881,32.56034561]
[1770728441450,14.37609055,83.92,83.881,32.56034561]
[1770728443145,10.7353,83.913,83.881,32.56034561]
[1770728443644,3.64169055,83.9,83.855,32.6222438]
[1770728444345,10.738,83.891,83.855,32.6222438]
[1770728448256,10.7371,83.898,83.855,32.6222438]
[1770728448553,10.7371,83.898,83.861,32.69544306]
[1770728448859,10.7371,83.898,83.86,3.64169055]
[1770728448860,96.08,83.94,83.871,32.69544306]
[1770728449057,3.64169055,83.93,83.881,32.69544306]
[1770728450857,10.7342,83.921,83.881,32.69544306]
[1770728451056,3.64169055,83.93,83.881,32.69544306]
[1770728453363,3.64169055,83.93,83.883,32.62415779]
[1770728458372,8.88231195,83.961,83.887,32.46830019]
[1770728458573,3.64169055,83.94,83.891,32.46830019]
[1770728459076,3.64169055,83.91,83.879,32.46830019]
[1770728461170,3.64169055,83.9,83.879,32.46830019]
[1770728461366,3.64169055,83.89,83.851,32.51982423]
[1770728462176,3.64169055,83.88,83.851,32.51982423]
[1770728462377,3.64169055,83.87,83.839,32.51804593]
[1770728462780,3.64169055,83.88,83.839,32.51804593]
[1770728464575,3.64169055,83.88,83.841,32.57065017]
[1770728464780,3.64169055,83.89,83.841,32.57065017]
[1770728465782,3.64169055,83.89,83.847,10.7436]
[1770728465980,3.64169055,83.89,83.848,32.30488109]
[1770728467977,10.7364,83.904,83.861,32.24331777]
[1770728468189,3.64169055,83.91,83.861,32.24331777]
[1770728469084,10.7356,83.91,83.863,32.24122843]
[1770728469282,14.37729055,83.91,83.863,32.24122843]
[1770728469789,3.64169055,83.9,83.863,32.24122843]
[1770728470086,3.64169055,83.89,83.841,32.29144269]
[1770728470484,3.64169055,83.89,83.849,32.29144269]
[1770728471987,3.64169055,83.88,83.849,32.29144269]
[1770728475394,3.64169055,83.87,83.839,42.98006699]
[1770728475588,3.64169055,83.87,83.84,32.23536699]
[1770728476301,3.64169055,83.87,83.842,10.7443]
[1770728476787,3.64169055,83.88,83.843,32.23346894]
[1770728479484,95.16,83.911,83.802,14.80451527]
[1770728479681,95.16,83.911,83.803,32.2309067]
[1770728479682,3.64169055,83.84,83.803,32.2309067]
[1770728480187,21.4741,83.899,83.811,32.22685334]
[1770728480188,3.64169055,83.86,83.811,32.22685334]
[1770728480891,3.64169055,83.87,83.814,32.22685334]
[1770728481692,3.64169055,83.87,83.816,32.66159476]
[1770728482292,3.64169055,83.87,83.791,95.18]
[1770728482293,3.64169055,83.87,83.821,32.6593046]
[1770728483799,10.7409,83.869,83.821,32.6593046]
[1770728486891,3.64169055,83.86,83.821,32.6593046]
[1770728487293,3.64169055,83.85,83.821,32.6593046]
[1770728488193,10.7424,83.857,83.821,32.6593046]
[1770728488895,95.18,83.889,83.821,32.6593046]
[1770728489096,21.4676,83.925,83.842,32.79094745]
[1770728489295,3.64169055,83.89,83.842,32.79094745]
[1770728490693,3.64169055,83.89,83.843,32.84317835]
[1770728491005,3.64144127,83.89,83.843,32.84317835]
[1770728492196,3.64144127,83.88,83.843,32.84317835]
[1770728492397,10.7383,83.889,83.843,32.84317835]
[1770728498501,10.7392,83.883,83.843,32.84317835]
[1770728499112,14.37964127,83.89,83.843,32.84317835]
[1770728499810,10.7382,83.89,83.843,32.84317835]
[1770728500104,10.7391,83.883,83.843,32.84317835]
[1770728502704,10.7383,83.889,83.843,43.58727835]
[1770728502909,10.7383,83.889,83.844,32.17858275]
[1770728503603,10.7391,83.883,83.844,32.17858275]
[1770728506906,10.74,83.876,83.844,32.17858275]